{"text_format":"3","workbook":"xlsx","n_sheets":14,"sheets":["porady","podsumowanie","sty","lut","mar","kwi","maj","cze","lip","sie","wrz","paź","lis","gru"],"not_rendered":{"charts":1,"defined_names":27},"read":"whole","date_system":"1900"}

{"sheet":"porady","index":0,"n_rows":18,"n_cols":1,"rows_kept":18}
["PORADY DOTYCZĄCE SZABLONU"]
["Czy istnieje łatwy sposób poruszania się między arkuszem trendów w wydatkach a szczegółami wydatków miesięcznych?"]
["Aby szybko przejść do wydatków w określonym miesiącu, kliknij skojarzony link nawigacyjny powyżej wykresu, na przykład link nawigacyjny Sty w komórce B2. Następnie, aby wrócić do arkusza Trendy w wydatkach, kliknij link nawigacyjny Podsumowanie w komórce D1. "]
["Aby powrócić do tego arkusza porad, w arkuszu podsumowania wybierz komórkę N2. We wszystkich arkuszach miesięcy wybierz komórkę E1."]
["Jak dodać nowy typ wydatku do podsumowania wydatków lub nowe wydatki miesięczne?"]
["Podsumowanie wydatków poniżej wykresu i szczegóły wydatków w każdym miesiącu mają postać tabel programu Excel. Aby dodać nowe wiersze do dowolnej tabeli programu Excel, wykonaj jedną z następujących czynności:"]
[{"$f":"ROW(A1)&\". Jeśli tabela nie zawiera wiersza sumy, zacznij wpisywać poniżej tabeli, a po naciśnięciu klawisza Enter lub Tab zostanie ona automatycznie rozwinięta.\"","v":"1. Jeśli tabela nie zawiera wiersza sumy, zacznij wpisywać poniżej tabeli, a po naciśnięciu klawisza Enter lub Tab zostanie ona automatycznie rozwinięta."}]
[{"$f":"ROW(A2)&\". Umieść wskaźnik komórki na ostatniej komórce powyżej wiersza sumy, takiego jak suma ostatnich wydatków, a następnie naciśnij klawisz Tab.\"","v":"2. Umieść wskaźnik komórki na ostatniej komórce powyżej wiersza sumy, takiego jak suma ostatnich wydatków, a następnie naciśnij klawisz Tab."}]
[{"$f":"ROW(A3)&\". Kliknij prawym przyciskiem myszy w tabeli i w wyświetlonym menu wskaż pozycję Wstaw, a następnie kliknij pozycję Wiersze tabeli powyżej lub Wiersze tabeli poniżej.\"","v":"3. Kliknij prawym przyciskiem myszy w tabeli i w wyświetlonym menu wskaż pozycję Wstaw, a następnie kliknij pozycję Wiersze tabeli powyżej lub Wiersze tabeli poniżej."}]
[{"$f":"ROW(A4)&\". W prawym dolnym rogu tabeli umieść wskaźnik myszy na uchwycie zmiany rozmiaru tabeli, a następnie przeciągnij w dół, aby zwiększyć liczbę dostępnych wierszy tabeli.\"","v":"4. W prawym dolnym rogu tabeli umieść wskaźnik myszy na uchwycie zmiany rozmiaru tabeli, a następnie przeciągnij w dół, aby zwiększyć liczbę dostępnych wierszy tabeli."}]
["Wprowadź wydatek w arkuszu podsumowania w tabeli Podsumowanie_wydatków w kolumnie Wydatki."]
["Dodaj kwotę wydatku dla każdego typu wydatku w arkuszu miesiąca, którego dotyczy wydatek."]
["na przykład: „Wydatek 1” występuje w miesiącach od stycznia do czerwca i w grudniu. "]
[{"$f":"ROW(A1)&\". Pozycja Wydatek 1 zostaje wprowadzona w arkuszu podsumowania w obszarze wydatków w tabeli Podsumowanie_wydatków (jako tytuł typu wydatku)\"","v":"1. Pozycja Wydatek 1 zostaje wprowadzona w arkuszu podsumowania w obszarze wydatków w tabeli Podsumowanie_wydatków (jako tytuł typu wydatku)"}]
[{"$f":"ROW(A2)&\". W przypadku każdego miesiąca, w którym występuje wydatek, wprowadź kwotę tego wydatku w odpowiednim arkuszu miesiąca.\"","v":"2. W przypadku każdego miesiąca, w którym występuje wydatek, wprowadź kwotę tego wydatku w odpowiednim arkuszu miesiąca."}]
[{"$f":"ROW(A3)&\". Za pomocą typu wydatku z arkusza Podsumowanie_wydatków tworzona jest lista kategorii dla kolumny Kategoria w poszczególnych arkuszach miesięcy.\"","v":"3. Za pomocą typu wydatku z arkusza Podsumowanie_wydatków tworzona jest lista kategorii dla kolumny Kategoria w poszczególnych arkuszach miesięcy."}]
[{"$f":"ROW(A4)&\". Aby wybrać odpowiedni typ wydatku dla wprowadzonej kwoty wydatku, skorzystaj z listy kategorii w kolumnie Kategoria\"","v":"4. Aby wybrać odpowiedni typ wydatku dla wprowadzonej kwoty wydatku, skorzystaj z listy kategorii w kolumnie Kategoria"}]
[{"$f":"ROW(A5)&\". Aby dodać nowe wydatki dla dowolnego miesiąca, dodaj nowy wiersz w tabeli Podsumowanie_wydatków w arkuszu podsumowania, a następnie wprowadź odpowiednie szczegóły wydatków w arkuszu miesiąca, którego dotyczą.\"","v":"5. Aby dodać nowe wydatki dla dowolnego miesiąca, dodaj nowy wiersz w tabeli Podsumowanie_wydatków w arkuszu podsumowania, a następnie wprowadź odpowiednie szczegóły wydatków w arkuszu miesiąca, którego dotyczą."}]

{"sheet":"podsumowanie","index":1,"n_rows":10,"n_cols":15,"rows_kept":10}
["TRENDY W WYDATKACH"]
[null,"Sty","Lut","Mar","Kwi","Maj","Cze","Lip","Sie","Wrz","Paź","Lis","Gru","Porady"]
[]
["Wydatki","Sty","Lut","Mar","Kwi","Maj","Cze","Lip","Sie","Wrz","Paź","Lis","Gru","Suma","Trend"]
["Wydatek 1",{"$f":"SUMIFS(Wyd_sty[Kwota], Wyd_sty[Kategoria], Podsumowanie_wydatków[[#This Row],[Wydatki]])","v":{"v":33,"d":"33.00"}},{"$f":"SUMIFS(Wyd_lut[Kwota], Wyd_lut[Kategoria], Podsumowanie_wydatków[[#This Row],[Wydatki]])","v":{"v":375,"d":"375.00"}},{"$f":"SUMIFS(Wyd_mar[Kwota], Wyd_mar[Kategoria], Podsumowanie_wydatków[[#This Row],[Wydatki]])","v":{"v":33,"d":"33.00"}},{"$f":"SUMIFS(Wyd_kwi[Kwota], Wyd_kwi[Kategoria], Podsumowanie_wydatków[[#This Row],[Wydatki]])","v":{"v":45,"d":"45.00"}},{"$f":"SUMIFS(Wyd_maj[Kwota], Wyd_maj[Kategoria], Podsumowanie_wydatków[[#This Row],[Wydatki]])","v":{"v":375,"d":"375.00"}},{"$f":"SUMIFS(Wyd_cze[Kwota], Wyd_cze[Kategoria], Podsumowanie_wydatków[[#This Row],[Wydatki]])","v":{"v":201,"d":"201.00"}},{"$f":"SUMIFS(Wyd_lip[Kwota], Wyd_lip[Kategoria], Podsumowanie_wydatków[[#This Row],[Wydatki]])","v":{"v":0,"d":"0.00"}},{"$f":"SUMIFS(Wyd_sie[Kwota], Wyd_sie[Kategoria], Podsumowanie_wydatków[[#This Row],[Wydatki]])","v":{"v":0,"d":"0.00"}},{"$f":"SUMIFS(Wyd_wrz[Kwota], Wyd_wrz[Kategoria], Podsumowanie_wydatków[[#This Row],[Wydatki]])","v":{"v":0,"d":"0.00"}},{"$f":"SUMIFS(Wyd_paź[Kwota], Wyd_paź[Kategoria], Podsumowanie_wydatków[[#This Row],[Wydatki]])","v":{"v":0,"d":"0.00"}},{"$f":"SUMIFS(Wyd_lis[Kwota], Wyd_lis[Kategoria], Podsumowanie_wydatków[[#This Row],[Wydatki]])","v":{"v":0,"d":"0.00"}},{"$f":"SUMIFS(Wyd_gru[Kwota], Wyd_gru[Kategoria], Podsumowanie_wydatków[[#This Row],[Wydatki]])","v":{"v":201,"d":"201.00"}},{"$f":"SUM(Podsumowanie_wydatków[[#This Row],[Sty]:[Gru]])","v":{"v":1263,"d":"1,263.00"}}]
["Wydatek 2",{"$f":"SUMIFS(Wyd_sty[Kwota], Wyd_sty[Kategoria], Podsumowanie_wydatków[[#This Row],[Wydatki]])","v":{"v":238,"d":"238.00"}},{"$f":"SUMIFS(Wyd_lut[Kwota], Wyd_lut[Kategoria], Podsumowanie_wydatków[[#This Row],[Wydatki]])","v":{"v":238,"d":"238.00"}},{"$f":"SUMIFS(Wyd_mar[Kwota], Wyd_mar[Kategoria], Podsumowanie_wydatków[[#This Row],[Wydatki]])","v":{"v":238,"d":"238.00"}},{"$f":"SUMIFS(Wyd_kwi[Kwota], Wyd_kwi[Kategoria], Podsumowanie_wydatków[[#This Row],[Wydatki]])","v":{"v":123,"d":"123.00"}},{"$f":"SUMIFS(Wyd_maj[Kwota], Wyd_maj[Kategoria], Podsumowanie_wydatków[[#This Row],[Wydatki]])","v":{"v":111,"d":"111.00"}},{"$f":"SUMIFS(Wyd_cze[Kwota], Wyd_cze[Kategoria], Podsumowanie_wydatków[[#This Row],[Wydatki]])","v":{"v":98,"d":"98.00"}},{"$f":"SUMIFS(Wyd_lip[Kwota], Wyd_lip[Kategoria], Podsumowanie_wydatków[[#This Row],[Wydatki]])","v":{"v":0,"d":"0.00"}},{"$f":"SUMIFS(Wyd_sie[Kwota], Wyd_sie[Kategoria], Podsumowanie_wydatków[[#This Row],[Wydatki]])","v":{"v":0,"d":"0.00"}},{"$f":"SUMIFS(Wyd_wrz[Kwota], Wyd_wrz[Kategoria], Podsumowanie_wydatków[[#This Row],[Wydatki]])","v":{"v":0,"d":"0.00"}},{"$f":"SUMIFS(Wyd_paź[Kwota], Wyd_paź[Kategoria], Podsumowanie_wydatków[[#This Row],[Wydatki]])","v":{"v":0,"d":"0.00"}},{"$f":"SUMIFS(Wyd_lis[Kwota], Wyd_lis[Kategoria], Podsumowanie_wydatków[[#This Row],[Wydatki]])","v":{"v":0,"d":"0.00"}},{"$f":"SUMIFS(Wyd_gru[Kwota], Wyd_gru[Kategoria], Podsumowanie_wydatków[[#This Row],[Wydatki]])","v":{"v":440,"d":"440.00"}},{"$f":"SUM(Podsumowanie_wydatków[[#This Row],[Sty]:[Gru]])","v":{"v":1486,"d":"1,486.00"}}]
["Wydatek 3",{"$f":"SUMIFS(Wyd_sty[Kwota], Wyd_sty[Kategoria], Podsumowanie_wydatków[[#This Row],[Wydatki]])","v":{"v":110,"d":"110.00"}},{"$f":"SUMIFS(Wyd_lut[Kwota], Wyd_lut[Kategoria], Podsumowanie_wydatków[[#This Row],[Wydatki]])","v":{"v":110,"d":"110.00"}},{"$f":"SUMIFS(Wyd_mar[Kwota], Wyd_mar[Kategoria], Podsumowanie_wydatków[[#This Row],[Wydatki]])","v":{"v":110,"d":"110.00"}},{"$f":"SUMIFS(Wyd_kwi[Kwota], Wyd_kwi[Kategoria], Podsumowanie_wydatków[[#This Row],[Wydatki]])","v":{"v":125,"d":"125.00"}},{"$f":"SUMIFS(Wyd_maj[Kwota], Wyd_maj[Kategoria], Podsumowanie_wydatków[[#This Row],[Wydatki]])","v":{"v":333,"d":"333.00"}},{"$f":"SUMIFS(Wyd_cze[Kwota], Wyd_cze[Kategoria], Podsumowanie_wydatków[[#This Row],[Wydatki]])","v":{"v":122,"d":"122.00"}},{"$f":"SUMIFS(Wyd_lip[Kwota], Wyd_lip[Kategoria], Podsumowanie_wydatków[[#This Row],[Wydatki]])","v":{"v":0,"d":"0.00"}},{"$f":"SUMIFS(Wyd_sie[Kwota], Wyd_sie[Kategoria], Podsumowanie_wydatków[[#This Row],[Wydatki]])","v":{"v":0,"d":"0.00"}},{"$f":"SUMIFS(Wyd_wrz[Kwota], Wyd_wrz[Kategoria], Podsumowanie_wydatków[[#This Row],[Wydatki]])","v":{"v":0,"d":"0.00"}},{"$f":"SUMIFS(Wyd_paź[Kwota], Wyd_paź[Kategoria], Podsumowanie_wydatków[[#This Row],[Wydatki]])","v":{"v":0,"d":"0.00"}},{"$f":"SUMIFS(Wyd_lis[Kwota], Wyd_lis[Kategoria], Podsumowanie_wydatków[[#This Row],[Wydatki]])","v":{"v":0,"d":"0.00"}},{"$f":"SUMIFS(Wyd_gru[Kwota], Wyd_gru[Kategoria], Podsumowanie_wydatków[[#This Row],[Wydatki]])","v":{"v":122,"d":"122.00"}},{"$f":"SUM(Podsumowanie_wydatków[[#This Row],[Sty]:[Gru]])","v":{"v":1032,"d":"1,032.00"}}]
["Wydatek 4",{"$f":"SUMIFS(Wyd_sty[Kwota], Wyd_sty[Kategoria], Podsumowanie_wydatków[[#This Row],[Wydatki]])","v":{"v":426,"d":"426.00"}},{"$f":"SUMIFS(Wyd_lut[Kwota], Wyd_lut[Kategoria], Podsumowanie_wydatków[[#This Row],[Wydatki]])","v":{"v":84,"d":"84.00"}},{"$f":"SUMIFS(Wyd_mar[Kwota], Wyd_mar[Kategoria], Podsumowanie_wydatków[[#This Row],[Wydatki]])","v":{"v":84,"d":"84.00"}},{"$f":"SUMIFS(Wyd_kwi[Kwota], Wyd_kwi[Kategoria], Podsumowanie_wydatków[[#This Row],[Wydatki]])","v":{"v":426,"d":"426.00"}},{"$f":"SUMIFS(Wyd_maj[Kwota], Wyd_maj[Kategoria], Podsumowanie_wydatków[[#This Row],[Wydatki]])","v":{"v":125,"d":"125.00"}},{"$f":"SUMIFS(Wyd_cze[Kwota], Wyd_cze[Kategoria], Podsumowanie_wydatków[[#This Row],[Wydatki]])","v":{"v":187,"d":"187.00"}},{"$f":"SUMIFS(Wyd_lip[Kwota], Wyd_lip[Kategoria], Podsumowanie_wydatków[[#This Row],[Wydatki]])","v":{"v":0,"d":"0.00"}},{"$f":"SUMIFS(Wyd_sie[Kwota], Wyd_sie[Kategoria], Podsumowanie_wydatków[[#This Row],[Wydatki]])","v":{"v":0,"d":"0.00"}},{"$f":"SUMIFS(Wyd_wrz[Kwota], Wyd_wrz[Kategoria], Podsumowanie_wydatków[[#This Row],[Wydatki]])","v":{"v":0,"d":"0.00"}},{"$f":"SUMIFS(Wyd_paź[Kwota], Wyd_paź[Kategoria], Podsumowanie_wydatków[[#This Row],[Wydatki]])","v":{"v":0,"d":"0.00"}},{"$f":"SUMIFS(Wyd_lis[Kwota], Wyd_lis[Kategoria], Podsumowanie_wydatków[[#This Row],[Wydatki]])","v":{"v":0,"d":"0.00"}},{"$f":"SUMIFS(Wyd_gru[Kwota], Wyd_gru[Kategoria], Podsumowanie_wydatków[[#This Row],[Wydatki]])","v":{"v":187,"d":"187.00"}},{"$f":"SUM(Podsumowanie_wydatków[[#This Row],[Sty]:[Gru]])","v":{"v":1519,"d":"1,519.00"}}]
["Wydatek 5",{"$f":"SUMIFS(Wyd_sty[Kwota], Wyd_sty[Kategoria], Podsumowanie_wydatków[[#This Row],[Wydatki]])","v":{"v":54,"d":"54.00"}},{"$f":"SUMIFS(Wyd_lut[Kwota], Wyd_lut[Kategoria], Podsumowanie_wydatków[[#This Row],[Wydatki]])","v":{"v":54,"d":"54.00"}},{"$f":"SUMIFS(Wyd_mar[Kwota], Wyd_mar[Kategoria], Podsumowanie_wydatków[[#This Row],[Wydatki]])","v":{"v":109,"d":"109.00"}},{"$f":"SUMIFS(Wyd_kwi[Kwota], Wyd_kwi[Kategoria], Podsumowanie_wydatków[[#This Row],[Wydatki]])","v":{"v":98,"d":"98.00"}},{"$f":"SUMIFS(Wyd_maj[Kwota], Wyd_maj[Kategoria], Podsumowanie_wydatków[[#This Row],[Wydatki]])","v":{"v":33,"d":"33.00"}},{"$f":"SUMIFS(Wyd_cze[Kwota], Wyd_cze[Kategoria], Podsumowanie_wydatków[[#This Row],[Wydatki]])","v":{"v":441,"d":"441.00"}},{"$f":"SUMIFS(Wyd_lip[Kwota], Wyd_lip[Kategoria], Podsumowanie_wydatków[[#This Row],[Wydatki]])","v":{"v":0,"d":"0.00"}},{"$f":"SUMIFS(Wyd_sie[Kwota], Wyd_sie[Kategoria], Podsumowanie_wydatków[[#This Row],[Wydatki]])","v":{"v":0,"d":"0.00"}},{"$f":"SUMIFS(Wyd_wrz[Kwota], Wyd_wrz[Kategoria], Podsumowanie_wydatków[[#This Row],[Wydatki]])","v":{"v":0,"d":"0.00"}},{"$f":"SUMIFS(Wyd_paź[Kwota], Wyd_paź[Kategoria], Podsumowanie_wydatków[[#This Row],[Wydatki]])","v":{"v":0,"d":"0.00"}},{"$f":"SUMIFS(Wyd_lis[Kwota], Wyd_lis[Kategoria], Podsumowanie_wydatków[[#This Row],[Wydatki]])","v":{"v":0,"d":"0.00"}},{"$f":"SUMIFS(Wyd_gru[Kwota], Wyd_gru[Kategoria], Podsumowanie_wydatków[[#This Row],[Wydatki]])","v":{"v":99,"d":"99.00"}},{"$f":"SUM(Podsumowanie_wydatków[[#This Row],[Sty]:[Gru]])","v":{"v":888,"d":"888.00"}}]
["Suma",{"$f":"SUBTOTAL(109,Podsumowanie_wydatków[Sty])","v":{"v":861,"d":"861.00"}},{"$f":"SUBTOTAL(109,Podsumowanie_wydatków[Lut])","v":{"v":861,"d":"861.00"}},{"$f":"SUBTOTAL(109,Podsumowanie_wydatków[Mar])","v":{"v":574,"d":"574.00"}},{"$f":"SUBTOTAL(109,Podsumowanie_wydatków[Kwi])","v":{"v":817,"d":"817.00"}},{"$f":"SUBTOTAL(109,Podsumowanie_wydatków[Maj])","v":{"v":977,"d":"977.00"}},{"$f":"SUBTOTAL(109,Podsumowanie_wydatków[Cze])","v":{"v":1049,"d":"1,049.00"}},{"$f":"SUBTOTAL(109,Podsumowanie_wydatków[Lip])","v":{"v":0,"d":"0.00"}},{"$f":"SUBTOTAL(109,Podsumowanie_wydatków[Sie])","v":{"v":0,"d":"0.00"}},{"$f":"SUBTOTAL(109,Podsumowanie_wydatków[Wrz])","v":{"v":0,"d":"0.00"}},{"$f":"SUBTOTAL(109,Podsumowanie_wydatków[Paź])","v":{"v":0,"d":"0.00"}},{"$f":"SUBTOTAL(109,Podsumowanie_wydatków[Lis])","v":{"v":0,"d":"0.00"}},{"$f":"SUBTOTAL(109,Podsumowanie_wydatków[Gru])","v":{"v":1049,"d":"1,049.00"}},{"$f":"SUBTOTAL(109,Podsumowanie_wydatków[Suma])","v":{"v":6188,"d":"6,188.00"}}]

{"sheet":"sty","index":2,"n_rows":9,"n_cols":5,"rows_kept":9,"merged":[[0,0,0,2]]}
["WYDATKI W STYCZNIU",null,null,"Podsumowanie","Porady"]
["Data","NR ZZ","Kwota","Kategoria","Opis"]
[{"$f":"DATE(YEAR(TODAY()),1,4)","v":"2016-01-04"},"A-12345",{"v":33,"d":"33.00"},"Wydatek 1","Materiały"]
[{"$f":"DATE(YEAR(TODAY()),1,5)","v":"2016-01-05"},"A-12346",{"v":238,"d":"238.00"},"Wydatek 2"]
[null,null,{"v":342,"d":"342.00"},"Wydatek 4"]
[null,null,{"v":110,"d":"110.00"},"Wydatek 3"]
[null,null,{"v":84,"d":"84.00"},"Wydatek 4"]
[null,null,{"v":54,"d":"54.00"},"Wydatek 5"]
["Suma",null,{"$f":"SUBTOTAL(109,Wyd_sty[Kwota])","v":{"v":861,"d":"861.00"}}]

{"sheet":"lut","index":3,"n_rows":9,"n_cols":5,"rows_kept":9,"merged":[[0,0,0,2]]}
["WYDATKI W LUTYM",null,null,"Podsumowanie","Porady"]
["Data","NR ZZ","Kwota","Kategoria","Opis"]
[{"$f":"DATE(YEAR(TODAY()),2,3)","v":"2016-02-03"},"A-12345",{"v":33,"d":"33.00"},"Wydatek 1","Materiały"]
[{"$f":"DATE(YEAR(TODAY()),2,4)","v":"2016-02-04"},"A-12346",{"v":238,"d":"238.00"},"Wydatek 2"]
[null,null,{"v":342,"d":"342.00"},"Wydatek 1"]
[null,null,{"v":110,"d":"110.00"},"Wydatek 3"]
[null,null,{"v":84,"d":"84.00"},"Wydatek 4"]
[null,null,{"v":54,"d":"54.00"},"Wydatek 5"]
["Suma",null,{"$f":"SUBTOTAL(109,Wyd_lut[Kwota])","v":{"v":861,"d":"861.00"}}]

{"sheet":"mar","index":4,"n_rows":9,"n_cols":5,"rows_kept":9,"merged":[[0,0,0,2]]}
["WYDATKI W MARCU",null,null,"Podsumowanie","Porady"]
["Data","NR ZZ","Kwota","Kategoria","Opis"]
[{"$f":"DATE(YEAR(TODAY()),3,5)","v":"2016-03-05"},"A-12345",{"v":33,"d":"33.00"},"Wydatek 1","Materiały"]
[{"$f":"DATE(YEAR(TODAY()),3,6)","v":"2016-03-06"},"A-12346",{"v":238,"d":"238.00"},"Wydatek 2"]
[null,null,{"v":55,"d":"55.00"},"Wydatek 5"]
[null,null,{"v":110,"d":"110.00"},"Wydatek 3"]
[null,null,{"v":84,"d":"84.00"},"Wydatek 4"]
[null,null,{"v":54,"d":"54.00"},"Wydatek 5"]
["Suma",null,{"$f":"SUBTOTAL(109,Wyd_mar[Kwota])","v":{"v":574,"d":"574.00"}}]

{"sheet":"kwi","index":5,"n_rows":9,"n_cols":5,"rows_kept":9,"merged":[[0,0,0,2]]}
["WYDATKI W KWIETNIU",null,null,"Podsumowanie","Porady"]
["Data","NR ZZ","Kwota","Kategoria","Opis"]
[{"$f":"DATE(YEAR(TODAY()),4,4)","v":"2016-04-04"},"A-12345",{"v":45,"d":"45.00"},"Wydatek 1","Materiały"]
[{"$f":"DATE(YEAR(TODAY()),4,8)","v":"2016-04-08"},"A-12346",{"v":123,"d":"123.00"},"Wydatek 2"]
[null,null,{"v":342,"d":"342.00"},"Wydatek 4"]
[null,null,{"v":125,"d":"125.00"},"Wydatek 3"]
[null,null,{"v":84,"d":"84.00"},"Wydatek 4"]
[null,null,{"v":98,"d":"98.00"},"Wydatek 5"]
["Suma",null,{"$f":"SUBTOTAL(109,Wyd_kwi[Kwota])","v":{"v":817,"d":"817.00"}}]

{"sheet":"maj","index":6,"n_rows":9,"n_cols":5,"rows_kept":9,"merged":[[0,0,0,2]]}
["WYDATKI W MAJU",null,null,"Podsumowanie","Porady"]
["Data","NR ZZ","Kwota","Kategoria","Opis"]
[{"$f":"DATE(YEAR(TODAY()),5,3)","v":"2016-05-03"},"A-12345",{"v":33,"d":"33.00"},"Wydatek 1","Materiały"]
[{"$f":"DATE(YEAR(TODAY()),5,8)","v":"2016-05-08"},"A-12346",{"v":111,"d":"111.00"},"Wydatek 2"]
[null,null,{"v":342,"d":"342.00"},"Wydatek 1"]
[null,null,{"v":333,"d":"333.00"},"Wydatek 3"]
[null,null,{"v":125,"d":"125.00"},"Wydatek 4"]
[null,null,{"v":33,"d":"33.00"},"Wydatek 5"]
["Suma",null,{"$f":"SUBTOTAL(109,Wyd_maj[Kwota])","v":{"v":977,"d":"977.00"}}]

{"sheet":"cze","index":7,"n_rows":9,"n_cols":5,"rows_kept":9,"merged":[[0,0,0,2]]}
["WYDATKI W CZERWCU",null,null,"Podsumowanie","Porady"]
["Data","NR ZZ","Kwota","Kategoria","Opis"]
[{"$f":"DATE(YEAR(TODAY()),6,7)","v":"2016-06-07"},"A-12345",{"v":201,"d":"201.00"},"Wydatek 1","Materiały"]
[{"$f":"DATE(YEAR(TODAY()),6,8)","v":"2016-06-08"},"A-12346",{"v":98,"d":"98.00"},"Wydatek 2"]
[null,null,{"v":342,"d":"342.00"},"Wydatek 5"]
[null,null,{"v":122,"d":"122.00"},"Wydatek 3"]
[null,null,{"v":187,"d":"187.00"},"Wydatek 4"]
[null,null,{"v":99,"d":"99.00"},"Wydatek 5"]
["Suma",null,{"$f":"SUBTOTAL(109,Wyd_cze[Kwota])","v":{"v":1049,"d":"1,049.00"}}]

{"sheet":"lip","index":8,"n_rows":9,"n_cols":5,"rows_kept":9,"merged":[[0,0,0,2]]}
["WYDATKI W LIPCU",null,null,"Podsumowanie","Porady"]
["Data","NR ZZ","Kwota","Kategoria","Opis"]
[{"$f":"DATE(YEAR(TODAY()),7,9)","v":"2016-07-09"},"A-12345",null,"Wydatek 1","Materiały"]
[{"$f":"DATE(YEAR(TODAY()),7,14)","v":"2016-07-14"},"A-12346",null,"Wydatek 2"]
[{"$nulls":3},"Wydatek 2"]
[{"$nulls":3},"Wydatek 3"]
[{"$nulls":3},"Wydatek 4"]
[{"$nulls":3},"Wydatek 5"]
["Suma",null,{"$f":"SUBTOTAL(109,Wyd_lip[Kwota])","v":{"v":0,"d":"0.00"}}]

{"sheet":"sie","index":9,"n_rows":9,"n_cols":5,"rows_kept":9,"merged":[[0,0,0,2]]}
["WYDATKI W SIERPNIU",null,null,"Podsumowanie","Porady"]
["Data","NR ZZ","Kwota","Kategoria","Opis"]
[{"$f":"DATE(YEAR(TODAY()),8,8)","v":"2016-08-08"},"A-12345",null,"Wydatek 1","Materiały"]
[{"$f":"DATE(YEAR(TODAY()),8,9)","v":"2016-08-09"},"A-12346",null,"Wydatek 2"]
[{"$nulls":3},"Wydatek 2"]
[{"$nulls":3},"Wydatek 3"]
[{"$nulls":3},"Wydatek 4"]
[{"$nulls":3},"Wydatek 5"]
["Suma",null,{"$f":"SUBTOTAL(109,Wyd_sie[Kwota])","v":{"v":0,"d":"0.00"}}]

{"sheet":"wrz","index":10,"n_rows":9,"n_cols":5,"rows_kept":9,"merged":[[0,0,0,2]]}
["WYDATKI WE WRZEŚNIU",null,null,"Podsumowanie","Porady"]
["Data","NR ZZ","Kwota","Kategoria","Opis"]
[{"$f":"DATE(YEAR(TODAY()),9,9)","v":"2016-09-09"},"A-12345",null,"Wydatek 1","Materiały"]
[{"$f":"DATE(YEAR(TODAY()),9,15)","v":"2016-09-15"},"A-12346",null,"Wydatek 2"]
[{"$nulls":3},"Wydatek 2"]
[{"$nulls":3},"Wydatek 3"]
[{"$nulls":3},"Wydatek 4"]
[{"$nulls":3},"Wydatek 5"]
["Suma",null,{"$f":"SUBTOTAL(109,Wyd_wrz[Kwota])","v":{"v":0,"d":"0.00"}}]

{"sheet":"paź","index":11,"n_rows":9,"n_cols":5,"rows_kept":9,"merged":[[0,0,0,2]]}
["WYDATKI W PAŹDZIERNIKU",null,null,"Podsumowanie","Porady"]
["Data","NR ZZ","Kwota","Kategoria","Opis"]
[{"$f":"DATE(YEAR(TODAY()),10,10)","v":"2016-10-10"},"A-12345",null,"Wydatek 1","Materiały"]
[{"$f":"DATE(YEAR(TODAY()),10,21)","v":"2016-10-21"},"A-12346",null,"Wydatek 2"]
[{"$nulls":3},"Wydatek 2"]
[{"$nulls":3},"Wydatek 3"]
[{"$nulls":3},"Wydatek 4"]
[{"$nulls":3},"Wydatek 5"]
["Suma",null,{"$f":"SUBTOTAL(109,Wyd_paź[Kwota])","v":{"v":0,"d":"0.00"}}]

{"sheet":"lis","index":12,"n_rows":9,"n_cols":5,"rows_kept":9,"merged":[[0,0,0,2]]}
["WYDATKI W LISTOPADZIE",null,null,"Podsumowanie","Porady"]
["Data","NR ZZ","Kwota","Kategoria","Opis"]
[{"$f":"DATE(YEAR(TODAY()),11,14)","v":"2016-11-14"},"A-12345",null,"Wydatek 1","Materiały"]
[{"$f":"DATE(YEAR(TODAY()),11,21)","v":"2016-11-21"},"A-12346",null,"Wydatek 2"]
[{"$nulls":3},"Wydatek 2"]
[{"$nulls":3},"Wydatek 3"]
[{"$nulls":3},"Wydatek 4"]
[{"$nulls":3},"Wydatek 5"]
["Suma",null,{"$f":"SUBTOTAL(109,Wyd_lis[Kwota])","v":{"v":0,"d":"0.00"}}]

{"sheet":"gru","index":13,"n_rows":9,"n_cols":5,"rows_kept":9,"merged":[[0,0,0,2]]}
["WYDATKI W GRUDNIU",null,null,"Podsumowanie","Porady"]
["Data","NR ZZ","Kwota","Kategoria","Opis"]
[{"$f":"DATE(YEAR(TODAY()),12,2)","v":"2016-12-02"},"A-12345",{"v":201,"d":"201.00"},"Wydatek 1","Materiały"]
[{"$f":"DATE(YEAR(TODAY()),12,24)","v":"2016-12-24"},"A-12346",{"v":98,"d":"98.00"},"Wydatek 2"]
[null,null,{"v":342,"d":"342.00"},"Wydatek 2"]
[null,null,{"v":122,"d":"122.00"},"Wydatek 3"]
[null,null,{"v":187,"d":"187.00"},"Wydatek 4"]
[null,null,{"v":99,"d":"99.00"},"Wydatek 5"]
["Suma",null,{"$f":"SUBTOTAL(109,Wyd_gru[Kwota])","v":{"v":1049,"d":"1,049.00"}}]